Cogmind - Beta 14 @@@ ROGUE MODE // 2024.11.30 @ 00:03:16 Player: hoganstuff Result: Destroyed by S-10 Pest with Light Assault Rifle Performance ------------- Evolutions (0) 0 Regions Visited (2) 400 Robots Destroyed (20) 100 Value Destroyed (364) 364 Prototype IDs (1) 20 Alien Tech Used (0) 0 Bonus (0) 0 TOTAL SCORE: 884 Bonus ------- None Cogmind --------- Core Integrity 0/250 Matter 267/300 Energy 98/100 System Corruption 1% Temperature Cool (0) Movement Core (50) Location -10/Mines Parts ------- > --- POWER (1) -------- (None) > --- PROPULSION (2) --- (None) > --- UTILITY (2) ------ Targeting Computer > --- WEAPON (2) ------- (None) > --- INVENTORY (5) ---- Heat Sink Medium Storage Unit Sensor Array Signal Interpreter Light Assault Rifle Peak State ------------ > --- POWER ------------ Heavy Ion Engine > --- PROPULSION ------- Light Treads Light Treads > --- UTILITY ---------- Large Storage Unit Power Shielding > --- WEAPON ----------- EM Pulse Gun EM Pulse Gun > --- INVENTORY -------- Heavy Ion Engine Medium Storage Unit Sensor Array Signal Interpreter Light Assault Rifle Light Assault Rifle Grenade Launcher Grenade Launcher [Rating: 10] Favorites ----------- Power Heavy Ion Engine Engine Heavy Ion Engine Propulsion Light Treads Treads Light Treads Utility Large Storage Unit Storage Large Storage Unit Processor Targeting Computer Protection Power Shielding Weapon Light Assault Rifle Energy Gun EM Pulse Gun Ballistic Gun Light Assault Rifle Launcher Grenade Launcher Build | -11 -10 -10 ------- Run | Yrd Mat Min Slots Evolved . | . . . Power . | . . . Propulsion . | . . . Utility . | . . . Weapon . | . . . Parts Attached 20 | 7 9 4 Power 3 | 1 2 . Engine 3 | 1 2 . Core . | . . . Reactor . | . . . Propulsion 3 | 2 1 . Treads 3 | 2 1 . Leg . | . . . Wheel . | . . . Hover . | . . . Flight . | . . . Utility 5 | 1 4 . Device . | . . . Storage 3 | 1 2 . Processor 1 | . 1 . Hackware . | . . . Protection 1 | . 1 . Artifact . | . . . Weapon 9 | 3 2 4 Energy Gun 4 | 3 . 1 Energy Cannon . | . . . Ballistic Gun 3 | . 2 1 Ballistic Cannon . | . . . Launcher 2 | . . 2 Special Weapon . | . . . Impact Weapon . | . . . Slashing Weapon . | . . . Piercing Weapon . | . . . Special Melee Weapon . | . . . Unidentified Prototypes 1 | . 1 . Parts Lost 9 | . 3 6 Power 1 | . . 1 Propulsion 3 | . 1 2 Utility . | . . . Weapon 5 | . 2 3 Highest Loss Streak 6 | . 2 6 To Critical Strikes . | . . . Average Slot Usage (%) 91 | . 93 59 Engine 12 | . 13 4 Treads 23 | . 24 12 Storage 14 | . 15 9 Processor 7 | . 7 14 Protection 4 | . 4 . Energy Gun 7 | . 7 4 Ballistic Gun 20 | . 20 12 Peak Build Rating 10 | 6 10 10 Average Rating 8 | 4 9 5 On Entrance 5 | . 6 10 Naked Turns . | . . . Heaviest Build 33 | 14 33 30 Greatest Support 40 | 40 40 40 Greatest Overweight (x) 7 | . 1 7 Average Overweight (x) . | . . . Largest Inventory Capacity 15 | 8 15 15 Average Capacity 13 | 6 13 11 Most Carried 14 | 1 14 14 Average Carried 9 | . 10 10 Final Capacity 15 | 8 15 5 Final Carried 14 | . 14 5 Class Distribution -------------------- 100% | Mutant Dominant Class ---------------- Mutant | -10/Materials Mutant | -10/Mines Resources | -11 -10 -10 ----------- Run | Yrd Mat Min Matter Collected 445 | 238 198 9 Remotely . | . . . Salvage Created 540 | . 501 39 Parts 45 | . 45 . Haulers Intercepted 1 | . 1 . Recyclers Shooed . | . . . Parts Field Recycled . | . . . Retrieved Matter . | . . . Parts Self-Destructed . | . . . Prevented . | . . . Kills | -11 -10 -10 ------- Run | Yrd Mat Min Combat Hostiles Destroyed 29 | . 17 12 Guns 18 | . 15 3 AOE 11 | . 2 9 Classes Destroyed 5 | . 4 1 Hauler 1 | . 1 . Watcher 2 | . 2 . Swarmer 12 | . 12 . Grunt 5 | . 5 . Assembled 12 | . . 12 Best Kill Streak 12 | . 4 12 Combat Bots Only 12 | . 4 12 Max Kills in Single Turn 6 | . 1 6 Gunslinging . | . . . Exploded 6 | . 1 6 Melee . | . . . Uniques/NPCs Destroyed . | . . . Combat | -11 -10 -10 -------- Run | Yrd Mat Min Hostile Shots Fired 132 | . 85 47 Missed 41 | . 25 16 Damage Taken 1227 | . 599 628 Core 254 | . 72 182 Absorbed by Shields . | . . . Redirected to Shielding 10 | . 10 . Regen/Repaired (Parts) 145 | . 145 . Core Remaining (%) 100 | 100 . . Volleys Fired 78 | . 68 10 Largest 2 | . 2 2 Hottest 80 | . 80 50 Shots Fired 151 | . 136 15 Gun 148 | . 136 12 Cannon . | . . . Launcher 3 | . . 3 Special . | . . . Kinetic 106 | . 99 7 Thermal 5 | . . 5 Explosive 3 | . . 3 Electromagnetic 37 | . 37 . Robot Hit Streak 9 | . 9 8 Robot Miss Streak 4 | . 4 2 Penetration Max . | . . . Secondary Targets 1 | . 1 . Max Gunslinging Chain 1 | . 1 . Shots Hit Robots 95 | . 84 11 Core Hits 60 | . 32 28 Critical Kills . | . . . Critical Parts Destroyed . | . . . Critical Strikes . | . . . Melee Attacks . | . . . Impact . | . . . Slashing . | . . . Piercing . | . . . Sneak Attacks . | . . . Combat Hostiles . | . . . Follow-up Attacks . | . . . Damage Inflicted 1525 | . 823 702 Guns 826 | . 739 87 Cannons . | . . . Explosions 673 | . 64 609 Melee . | . . . Ramming 26 | . 20 6 Kinetic 590 | . 560 30 Thermal 81 | . 24 57 Explosive 609 | . . 609 Electromagnetic 219 | . 219 . Impact . | . . . Slashing . | . . . Piercing . | . . . Highest Corruption 1 | . 1 1 Average Corruption 1 | . 1 1 Corruption Purged . | . . . Corruption Blocked . | . . . Effects 7 | . 6 1 Message Errors 1 | . 1 . Matter Fused 2 | . 2 . Energy Discharges 1 | . 1 . Parts Rejected 1 | . . 1 Misfires 1 | . 1 . Weapon Failures 1 | . 1 . Overload Shots . | . . . Overflow Damage 9 | . . 9 Projectiles . | . . . Explosions 9 | . . 9 Melee . | . . . Knockbacks . | . . . Impact . | . . . Kinetic . | . . . Secondary . | . . . Self-Inflicted Damage 92 | . 43 49 Shots 3 | . 1 2 Rammed 7 | . 6 1 Targets Rammed 7 | . 6 1 Kicked . | . . . Crushed . | . . . Highest Temperature 111 | . 111 25 Average Temperature 22 | . 22 11 Received Heat Transfer 250 | . 150 100 Siege Activations . | . . . Robots Corrupted . | . . . Combat Hostiles . | . . . Parts Fried . | . . . Impact Corruptions . | . . . Robots Melted . | . . . Combat Hostiles . | . . . Parts Melted . | . . . Heat Transferred 125 | . . 125 Parts Sabotaged . | . . . Parts Stolen . | . . . Parts Stripped . | . . . Power Chain Reactions 1 | . 1 . Alert | -11 -10 -10 ------- Run | Yrd Mat Min Peak Influence 302 | . 302 57 Initial 51 | . . 51 Average 163 | . 181 29 Maximum Alert Level 1 | . 1 . Low Security (%) 62 | 100 58 100 Level 1 37 | . 41 . Level 2 . | . . . Level 3 . | . . . Level 4 . | . . . Level 5 . | . . . High Security . | . . . Max Security . | . . . Squads Dispatched 3 | . 3 . Investigation 2 | . 2 . Extermination . | . . . Reinforcement 1 | . 1 . Assault . | . . . Garrison . | . . . Intercept . | . . . Searches Triggered . | . . . Construction Impeded . | . . . Haulers Reinforced . | . . . Active Scanning Responses . | . . . Cargo Convoy Interrupts . | . . . Stealth | -11 -10 -10 --------- Run | Yrd Mat Min Distress Signals 2 | . 2 . Communications Jammed . | . . . Distress Signals . | . . . Times Spotted 47 | . 26 21 Peak Tracking Total 14 | . 5 14 Tactical Retreats 5 | . 2 3 Traps | -11 -10 -10 ------- Run | Yrd Mat Min Traps Triggered 1 | . 1 . Indirectly . | . . . Trap Hack Attempts . | . . . Triggered . | . . . Disarmed . | . . . Reprogrammed . | . . . Reused . | . . . Traps Extracted . | . . . Installed . | . . . Triggered . | . . . Machines | -11 -10 -10 ---------- Run | Yrd Mat Min Machines Disabled 4 | . 4 . Max in Single Turn 2 | . 2 . Machines Repaired . | . . . Machines Dismantled . | . . . Machines Sabotaged . | . . . Overloaded Fab Kills . | . . . Hacking | -11 -10 -10 --------- Run | Yrd Mat Min Machines Accessed 6 | . 6 . Terminals 4 | . 4 . Fabricators . | . . . Repair Stations 1 | . 1 . Recycling Units 1 | . 1 . Scanalyzers . | . . . Garrison Access . | . . . Total Hacks 23 | . 23 . Successful 13 | . 13 . Failed 10 | . 10 . Catastrophic 3 | . 3 . Database Lockouts . | . . . Manual 12 | . 12 . Terminals 10 | . 10 . Fabricators . | . . . Repair Stations 9 | . 9 . Recycling Units 4 | . 4 . Scanalyzers . | . . . Garrison Access . | . . . Terminal Hacks 3 | . 3 . Robot Analysis 1 | . 1 . Recall Investigation 1 | . 1 . Zone Layout 1 | . 1 . Fabricator Hacks . | . . . Repair Station Hacks 6 | . 6 . Scan Component 3 | . 3 . Repair 3 | . 3 . Recycling Unit Hacks 2 | . 2 . Report Inventory 1 | . 1 . Retrieve Components 1 | . 1 . Scanalyzer . | . . . Garrison Access Hacks . | . . . Unauthorized Hacks 2 | . 2 . Terminals . | . . . Fabricators . | . . . Repair Stations . | . . . Recycling Units 2 | . 2 . Reject 1 | . 1 . Tunnel 1 | . 1 . Scanalyzers . | . . . Garrison Access . | . . . Data Cores Recovered . | . . . Used . | . . . Hacking Detections 5 | . 5 . Full Trace Events . | . . . Feedback Events . | . . . Feedback Blocked . | . . . Robot Schematics Acquired . | . . . Robots Built . | . . . Authchips . | . . . Time . | . . . Total Robot Build Rating . | . . . Part Schematics Acquired . | . . . Parts Built . | . . . Authchips . | . . . Time . | . . . Total Part Build Rating . | . . . Parts Repaired 3 | . 3 . Time 113 | . 113 . Parts Recycled . | . . . Recycled Matter . | . . . Retrieved Matter . | . . . Retrieved Components 5 | . 5 . Parts Scanalyzed . | . . . Part Schematics Acquired . | . . . Parts Damaged . | . . . Bothacking | -11 -10 -10 ------------ Run | Yrd Mat Min Used RIF Installer . | . . . Robots Hacked . | . . . Non-combat . | . . . Combat . | . . . Robot Hacks Applied . | . . . Relay Couplers Released . | . . . Fabnet Peak Effective % . | . . . Robots Rewired . | . . . Allies Hacked . | . . . Hacks Repelled . | . . . Allies | -11 -10 -10 -------- Run | Yrd Mat Min Total Allies . | . . . Largest Group . | . . . Highest-Rated Group . | . . . Highest-Rated Ally . | . . . Total Orders . | . . . Ally Attacks . | . . . Total Damage . | . . . Kills . | . . . Allies Corrupted . | . . . Allies Melted . | . . . Intel | -11 -10 -10 ------- Run | Yrd Mat Min Robot Analysis Total 1 | . 1 . Derelict Logs Recovered . | . . . Drone Launches . | . . . Drone Recoveries . | . . . Exploration | -11 -10 -10 ------------- Run | Yrd Mat Min Turns Passed 1585 | 69 1410 106 Spaces Moved 700 | 39 575 86 Core 68 | 3 . 65 Treads 632 | 36 575 21 Legs . | . . . Wheels . | . . . Hover . | . . . Flight . | . . . Fastest Speed 50 | 50 160 50 Average Speed 167 | 151 180 86 Slowest Speed 400 | 160 240 400 Overloaded Moves . | . . . Propulsion Burnouts . | . . . Robots Hopped . | . . . Cave-ins Triggered . | . . . Exploration Rate (%) 34 | 3 81 20 Regions Visited 2 Branch Regions 1 Pre-discovered Areas 1 | . 1 . Known Exits Taken . | . . . Unknown Exits Taken 2 | 1 1 . Scrap Searched . | . . . Spaces Dug . | . . . Terrain Destroyed 17 | . . 17 Melee . | . . . Projectile . | . . . AOE 17 | . . 17 Terrain Rammed . | . . . Walls Destroyed . | . . . Machines Disabled . | . . . Actions | -11 -10 -10 --------- Run | Yrd Mat Min Total 974 | 46 824 104 Wait 148 | . 147 1 Move 698 | 38 574 86 Hop . | . . . Pick Up 20 | 1 19 . Fast Attach 8 | 5 2 1 Attach 6 | 1 3 2 Detach 1 | . . 1 Swap 6 | 1 4 1 Drop 2 | . 1 1 Fire 78 | . 68 10 Melee . | . . . Ram 1 | . . 1 Kick . | . . . Crush 6 | . 6 . Escape Stasis . | . . . Rewire . | . . . Trap . | . . . Miscellaneous . | . . . Route ------- -11/Scrapyard -10/Materials (discovered 3 exits: [*Mat x2] / [*Min]) -10/Mines History --------- Turn | Location | Event 43 | -11/Scrapyard | Discovered new exit (range 15) 70 | -11/Scrapyard | Entered Materials 306 | -10/Materials | Build established: Mutant 406 | -10/Materials | Discovered new exit (range 14) 575 | -10/Materials | Repaired Corrupted Signal Interpreter 602 | -10/Materials | Repaired Lgt. Treads 654 | -10/Materials | Repaired Hvy. Ion Engine 898 | -10/Materials | Discovered new exit (range 7) 1036 | -10/Materials | Discovered new exit (range 16) 1480 | -10/Materials | Entered Mines 1494 | -10/Mines | Assembled infested the area 1517 | -10/Mines | Core integrity fell below 50% 1524 | -10/Mines | Core integrity fell below 20% 1552 | -10/Mines | Destroyed 12 combat bots 1582 | -10/Mines | Lost 6 parts (1p2n3w) 1586 | -10/Mines | Destroyed by S-10 Pest with Light Assault Rifle Last Messages --------------- 01518_ as-63034 destroyed. 01518_ as-96349 destroyed. 01520_ System corrupted: Lgt. Assault Rifle rejected. 01525_ as-59993 destroyed. 01527_ as-98994 destroyed. 01529_ Grenade Launcher destroyed. 01531_ as-97081 destroyed. 01533_ Acquired 9 matter. 01537_ Acquired Lgt. Assault Rifle. 01548_ Lgt. Treads destroyed. 01551_ Sml. Laser destroyed. 01553_ Dropped Lrg. Storage Unit. 01554_ T-07 Excavator system corrupted by crushing effect. 01554_ T-07 Excavator knocked back. 01555_ T-07 Excavator system terminally corrupted. 01563_ T-07 Excavator is excavating. 01569_ Slammed into T-07 Excavator. Map ----- +----------------------------------------------------+ | ???????????????????????????????????????? | | ???????????????????????????????????????? | | ???????????????????????????????????????? | | ???????????????????????????????????????? | | ???????????????????????????????????????? | | ???????????????????????????????????????? | | ???????????????????????????????????????? | | ???????????????????????????????????????? | | ???????????????????????????????????????? | | ???????????????????????????????????????? | | ???????????????????????????????????????? | | ???????????????????????????????????????? | | ???????????????????????????????????????? | | ???????????????????????????????????????? | | ???????????????????????????????????????? | | ???????????????????????????????????????? | | ???????????????####????????????????????? | | ??????????????## ##???????????????????? | | ??????????????# ##??????????????????? | | ??????????????? ##??????????????? #? | | ??????????????? #??????????????? #? | | ???????????????# #??????????????? #? | | ???????????????# #???# ?????????? #? | | ???????????????# #????? ?????????? #? | | ??????????????## ##????? ???##???? #? | | ?????????????##@ ####??# ### ##?# ## | | ?????????????# ##?# # ## | | ?????????????# #?# | | ?????????????# ##? ?? | | ????????????## #??# % #??? | | ???????????## ## s #?## #??? | | ???????????# ##?? ## #??? | | ???????????# ##a #????? ## # ##??? | | ???????????# ### #?????? ?## ##??? | | ??????????# #?# a#?????????### #??? | | ??????????# ##?# a#???????##### =##### | | ??????????# #??# #??????? ##!=| | | ??????????#####??# #???????# ##*![=## | | ?????????????????# #???????# ####[%#?? | | ?????????????????# #???????# #??# #?? | | ?????????????????# #?????### ##?# ## | | ?????############# ####### ### | | ?????# = | | ?????# ################### | | ?????##??????????????????## | | ??????????????????????????## # | | ???????????????????????????## ####### | | ????????????????????????????## ##?????? | | ?????????????????????????????####??????? | | ???????????????????????????????????????? | +----------------------------------------------------+ Best States ------------- Heat Dissipation 25 Energy Generation 14 Energy Capacity 280 Matter Stores 300 Matter Capacity 300 Sight Range 16 Terrain Scan Density 10 Power Shielding 33 Evasion (%) 50 Targeting Accuracy 5 Recoil Reduction 2 Item Schematics ----------------- None Robot Schematics ------------------ None Fabricated ------------ Nothing Alien Tech Used ----------------- None Achievements -------------- None Challenges ------------ None Game ------ Seed BackupClaymoresExtractor Manual? 0 Play Time 00:22:59 Cumulative 23.7 hours Start 2024.11.29 @ 23:41:00 End 2024.11.30 @ 00:03:16 Sessions 1 Manual Loads 0 Difficulty Rogue Special Mode None Game No. 16 Rogue 10 Adventurer 6 Explorer 0 Win Type - Total 0 Types 0/0/0/0/0/0/0/0/0 Lore% 11 Gallery% 23 Achievement% 19 Wizard Run 0 Options --------- Layout 1 ASCII 0 Keyboard 0 Movement Arrows Keybinds 0 Fullscreen 1 Font 24/Terminus Map View 50x35 Zoom Use 0% Tactical HUD 1 Map Filters NONE Filters NONE Steam 1 RUN: 287c12e9-b108-4274-a131-3a5f3085685e